[Event "Charlotte Open 2024"]
[Site "Charlotte"]
[Date "2024.01.15"]
[Round "5.2"]
[White "Cruz, Cristhian"]
[Black "Brodsky, David"]
[Result "0-1"]
[ECO "A36"]
[WhiteElo "2498"]
[BlackElo "2492"]
[Annotator "TA"]
[PlyCount "82"]
[EventDate "2024.01.05"]
[EventType "swiss"]
[EventCountry "USA"]
[SourceTitle "playchess.com"]
[Source "ChessBase"]
[SourceQuality "1"]
[TimeControl "6600+10"]

{[%evp 20,82,8,12,8,8,2,0,9,0,0,-17,-17,-5,-9,-15,-15,-14,-9,-25,-33,-52,-11,-32,-19,-62,0,0,4,0,0,-97,-10,-763,-748,-2023,-2085,-1502,-952,-924,-917,-909,-908,-902,-885,-998,-985,-844,-646,-636,-591,-1514,-1050,-1120,-970,-2258,-1845,-1700,-1755,-1985,-1806,-1614,-1590,-29986,-29987]} 1. c4 {[%emt 0:04:52]} c5 {[%emt 0:08:11]} 2. g3 {[%emt 0:01:29]} g6 {[%emt 0:00:05]} 3. Bg2 {[%emt 0:00:12]} Bg7 {[%emt 0:00:03]} 4. Nc3 {[%emt 0:02:08]} Nc6 {[%emt 0:00:37]} 5. a3 {[%emt 0:00:54]} d6 {[%emt 0:00:21]} 6. Rb1 {[%emt 0:01:06]} a5 {[%emt 0:00:03]} 7. d3 {[%emt 0:01:04]} e5 {[%emt 0:02:22]} 8. e3 {[%emt 0:06:40]} Nge7 {[%emt 0:00:14]} 9. Nge2 {[%emt 0:00:10]} O-O {[%emt 0:00:04]} 10. O-O {[%emt 0:00:25]} Rb8 {[%emt 0:00:05]} 11. Bd2 {[%emt 0:18:00]} Be6 {[%emt 0:00:09] A36: Symmetrical English vs ...g6: 4 Bg2 Bg7.} 12. Qb3 {[%emt 0:01:42]} Qd7 {[%emt 0:12:01]} 13. Rfc1 {[%emt 0:31:38] [#]} Rfd8 $146 {[%emt 0:02:59] The position is equal.} ({Predecessor:} 13... Bh3 14. Bxh3 Qxh3 15. Qd1 Qe6 16. Nb5 f5 17. b4 axb4 18. axb4 Rbd8 19. Nc7 Qf7 {½-½ Gurevich,M (2643)-Roy Chowdhury,S (2394) Vlissingen HZ op 10th 2006 (3)}) 14. Nd5 {[%emt 0:01:35]} b5 {[%emt 0:03:55][%mdl 64] Deflection} 15. cxb5 {[%emt 0:03:46]} Bxd5 {[%emt 0:00:47]} 16. Bxd5 {[%emt 0:00:12]} Nxd5 {[%emt 0:00:04]} 17. Qxd5 {[%emt 0:00:09]} Rxb5 {[%emt 0:02:41]} 18. Nc3 {[%emt 0:00:36]} Rb7 {[%emt 0:04:37]} 19. Qc4 {[%emt 0:01:46]} Rdb8 {[%emt 0:03:10]} 20. Rc2 {[%emt 0:04:43]} Rb3 {[%emt 0:08:44][%cal Bb7b3,Bb3a3,Ba3a1][%mdl 32]} 21. Ne4 {[%emt 0:14:04]} Ne7 {[%emt 1:02:28] Wards off Qd5} 22. Qa6 {[%emt 0:00:34]} (22. Bxa5 {seems wilder.} Rxa3 23. Qa6 Nc6 24. bxa3 Rxb1+ 25. Kg2) 22... Nf5 {[%emt 0:00:00]} (22... R3b6 $15 23. Qc4 R6b7) 23. Bxa5 $11 {[%emt 0:08:29]} Rxa3 {[%emt 0:00:00]} 24. b4 {[%emt 0:01:28]} h5 {[%emt 0:00:00]} 25. Rcb2 {[%emt 0:05:09] [#]} (25. Rc3 $11 {keeps the balance.} Rxb4 26. Rxb4 cxb4 27. Rxa3 (27. Qc8+ Qxc8 28. Rxc8+ Bf8 $11) 27... bxa3 28. Bb4) 25... h4 {[%emt 0:00:00]} ({Better is} 25... cxb4 $1 $17 {aiming for ...d5.} 26. Rxb4 Rxb4 27. Rxb4 (27. Qa8+ $2 Kh7 $19) 27... Ra1+ 28. Kg2 Nxe3+ 29. fxe3 Ra2+ 30. Nf2 (30. Kg1 $2 Qf5 $17) 30... Qf5 31. Qa8+ Bf8) 26. bxc5 $2 {[%emt 0:00:36][%mdl 8192] This costs White the game.} (26. g4 $11 Nd4 27. h3 (27. exd4 Qxg4+ 28. Kf1 Qh3+ 29. Kg1 Rxd3 $17)) 26... Rxb2 $19 {[%emt 0:00:00][%mdl 64] Deflection} 27. Rxb2 {[%emt 0:00:01]} Ra1+ {[%emt 0:00:00]} 28. Kg2 {[%emt 0:00:01] [#]} Nxe3+ $1 {[%emt 0:00:00][%mdl 512]} 29. Kf3 {[%emt 0:01:13]} Qg4+ {[%emt 0:00:00]} 30. Kxe3 {[%emt 0:00:03]} Bh6+ {[%emt 0:00:00]} 31. f4 {[%emt 0:00:06]} exf4+ {[%emt 0:00:00]} 32. Kd4 {[%emt 0:00:17]} Bg7+ {[%emt 0:00:00][%cal Bh6g7,Bg7b2,Bb2e5][%mdl 32]} 33. Kc4 {[%emt 0:00:01]} Qe6+ {[%emt 0:00:00]} 34. Kb5 {[%emt 0:00:09] Qa8+ is the strong threat.} Bxb2 {[%emt 0:00:00]} 35. Qxd6 {[%emt 0:00:07]} Qe8+ {[%emt 0:00:00]} 36. c6 {[%emt 0:00:17]} Be5 {[%emt 0:00:00]} 37. Qc5 {[%emt 0:00:19]} Qb8+ {[%emt 0:00:00]} 38. Kc4 {[%emt 0:00:01]} Rb1 {[%emt 0:00:00][%csl Gb1][%cal Rb8b3]} 39. Bb4 {[%emt 0:00:22]} fxg3 {[%emt 0:00:00]} 40. hxg3 {[%emt 0:00:01]} hxg3 {[%emt 0:00:00][%cal Bh4g3,Bg3g2][%mdl 32] Strongly threatening ...g2.} 41. d4 {[%emt 0:00:18]} g2 {[%emt 0:00:00] Weighted Error Value: White=1.28/Black=1.11} 0-1

[Event "Charlotte Open 2024"]
[Site "Charlotte"]
[Date "2024.01.15"]
[Round "5.3"]
[White "Peatman, Carter"]
[Black "Zhou, Jianchao"]
[Result "0-1"]
[ECO "B23"]
[WhiteElo "2022"]
[BlackElo "2562"]
[Annotator "TA"]
[PlyCount "132"]
[EventDate "2024.01.05"]
[EventType "swiss"]
[EventCountry "USA"]
[SourceTitle "playchess.com"]
[Source "ChessBase"]
[SourceQuality "1"]
[TimeControl "6600+10"]

{[%evp 9,132,18,19,12,10,9,13,7,25,0,0,0,0,0,0,-17,-18,-14,-12,-43,-40,-54,-55,-76,-76,-70,-71,-75,-72,-74,-69,-97,-91,-102,-84,-84,-84,-106,-84,-114,-84,-84,-78,-83,-85,-91,-89,-99,-82,-97,-91,-91,-91,-113,-113,-118,-113,-113,-104,-112,0,-113,-113,-122,-108,-113,-106,-131,-150,-268,-268,-268,-268,-268,-268,-268,-268,-268,-268,-268,-268,-268,-268,-268,-268,-317,-311,-614,-421,-525,-310,-310,-309,-303,-299,-403,-403,-586,-585,-532,-466,-646,-620,-880,-866,-830,-556,-1053,-1018,-937,-878,-853,-866,-1600,-1583,-1447,-1419,-1024,-740,-29959,-29961,-29968,-29968,-6123,-5759]} 1. e4 {[%emt 0:04:06]} c5 {[%emt 0:01:00]} 2. Nc3 {[%emt 0:01:12]} Nc6 {[%emt 1:49:30]} 3. Bb5 {[%emt 0:02:16]} Nd4 {[%emt 0:00:00]} 4. Nf3 {[%emt 0:00:11]} a6 {[%emt 0:00:00]} 5. Bd3 {[%emt 0:00:12]} Nc6 {[%emt 0:00:00]} 6. O-O {[%emt 0:02:02] B23: Closed Sicilian: Lines without g3.} e6 {[%emt 0:00:00]} 7. b3 {[%emt 0:01:01]} Nge7 {[%emt 0:00:00][%cal Bg8e7,Be7g6,Bg6e5,Be5f3][%mdl 32]} 8. Bb2 {[%emt 0:10:17] The position is equal.} Ng6 {[%emt 0:00:00]} 9. Re1 {[%emt 0:02:09][%cal Oc3d5]} d6 {[%emt 0:00:00]} 10. Bf1 {[%emt 0:02:43]} Nge5 {[%emt 0:00:00]} 11. Nb1 {[%emt 0:06:46] [#]} g6 $146 {[%emt 0:00:00]} ({Predecessor:} 11... Be7 12. Nxe5 dxe5 13. a4 O-O 14. Na3 Qc7 15. Nc4 b6 16. Qh5 f6 17. Re3 Rf7 18. Rg3 Bf8 {½-½ Krzywda,A (2152)-Risteski,E (2374) EU-ch 22nd Terme Catez 2022 (11)}) 12. c3 {[%emt 0:08:12]} Nxf3+ {[%emt 0:00:00]} 13. Qxf3 {[%emt 0:00:15]} Bg7 {[%emt 0:00:00]} 14. Qd1 {[%emt 0:06:55]} O-O {[%emt 0:00:00]} 15. d3 {[%emt 0:02:41]} b5 {[%emt 0:00:00]} 16. Nd2 {[%emt 0:11:02]} b4 {[%emt 0:00:00]} 17. Qc2 {[%emt 0:07:19]} bxc3 {[%emt 0:00:00]} 18. Bxc3 {[%emt 0:00:10]} Bxc3 {[%emt 0:00:00]} 19. Qxc3 {[%emt 0:00:12][%cal Ob3b4]} e5 {[%emt 0:00:00]} 20. a3 {[%emt 0:08:17]} a5 {[%emt 0:00:00]} 21. Rab1 {[%emt 0:01:53]} Rb8 {[%emt 0:00:00]} 22. Be2 {[%emt 0:03:35]} Be6 {[%emt 0:00:00]} 23. Rec1 {[%emt 0:04:10]} Rb7 {[%emt 0:00:00]} 24. Bd1 {[%emt 0:00:47]} Qe7 {[%emt 0:00:00]} 25. Rb2 {[%emt 0:04:28]} Rfb8 {[%emt 0:00:00]} 26. Rcb1 {[%emt 0:01:52]} Qd8 {[%emt 0:00:00]} 27. Nc4 {[%emt 0:03:06]} Rb5 {[%emt 0:00:00]} 28. Kh1 {[%emt 0:00:56]} R8b7 {[%emt 0:00:00]} 29. h3 {[%emt 0:01:47]} Qb8 {[%emt 0:00:00]} 30. Bg4 {[%emt 0:03:28]} Bxc4 {[%emt 0:00:00]} 31. Qxc4 {[%emt 0:01:18]} Nd4 {[%emt 0:00:00][%cal Rb5b3]} 32. Bd1 {[%emt 0:00:39]} Qd8 {[%emt 0:00:00]} 33. Kh2 {[%emt 0:00:39]} Qf6 {[%emt 0:00:00]} 34. Kg1 {[%emt 0:01:51]} Qd8 {[%emt 0:00:00] Black is more active.} 35. Kh2 $1 {[%emt 0:00:02]} Kg7 {[%emt 0:00:00] Black continues to play with concentration.} 36. g3 {[%emt 0:00:52]} Qb8 {[%emt 0:00:00]} 37. Kg2 {[%emt 0:00:11] [#]} a4 $1 {[%emt 0:00:00][%mdl 512]} 38. b4 {[%emt 0:01:21] [#]} (38. Qxa4 Ra7) 38... cxb4 $1 {[%emt 0:00:00]} 39. Bxa4 {[%emt 0:04:18]} (39. Rxb4 $17 Rxb4 40. axb4) 39... Rc5 $19 {[%emt 0:00:00]} 40. Qa2 {[%emt 0:00:04][%cal Rb2b4] [#]} b3 {[%emt 0:00:00][%mdl 512]} 41. Rxb3 {[%emt 0:00:41]} Nxb3 {[%emt 0:00:00]} 42. Rxb3 {[%emt 0:00:02]} Rxb3 {[%emt 0:00:00]} 43. Bxb3 {[%emt 0:00:01][%mdl 4096] Endgame KQR-KQB} Rb5 {[%emt 0:00:00]} 44. Bc4 {[%emt 0:01:09]} Rb2 {[%emt 0:00:00]} 45. Qa1 {[%emt 0:00:01]} Qb6 {[%emt 0:00:00]} 46. Qe1 {[%emt 0:00:05]} Qa7 {[%emt 0:00:00]} 47. Kg1 {[%emt 0:00:26]} Qxa3 {[%emt 0:00:00]} 48. Qe3 $2 {[%emt 0:00:01]} (48. g4) 48... Rb1+ {[%emt 0:00:00]} 49. Kg2 {[%emt 0:00:11]} Qc1 {[%emt 0:00:00]} 50. Qxc1 {[%emt 0:00:21]} Rxc1 {[%emt 0:00:00] KR-KB} 51. Bb5 {[%emt 0:00:04]} Rc2 {[%emt 0:00:00]} 52. Bc4 {[%emt 0:00:16]} f5 {[%emt 0:00:00][%cal Bf7f5,Bf5f4][%mdl 32] White must now prevent ...fxe4.} 53. Bd5 {[%emt 0:00:05]} (53. Bb5 {might work better.}) 53... Rd2 {[%emt 0:00:00]} 54. Bc4 {[%emt 0:00:03]} f4 {[%emt 0:00:00]} 55. Kf3 {[%emt 0:00:13]} g5 {[%emt 0:00:00]} 56. Ba6 {[%emt 0:00:10]} Kf6 {[%emt 0:00:00]} 57. Bb5 {[%emt 0:00:01]} h6 {[%emt 0:00:00]} 58. Ba6 {[%emt 0:00:01]} Ke7 {[%emt 0:00:00]} 59. Bb5 {[%emt 0:00:04]} Kd8 {[%emt 0:00:00]} 60. Bc4 {[%emt 0:00:08]} Kc7 {[%emt 0:00:00]} 61. Ba6 {[%emt 0:00:28]} Kb6 {[%emt 0:00:00]} 62. Bc4 {[%emt 0:00:01]} Kc5 {[%emt 0:00:00]} 63. Ba6 {[%emt 0:00:02]} Kd4 {[%emt 0:00:00] And now ...Rxd3+ would win.} 64. h4 {[%emt 0:00:19]} fxg3 {[%emt 0:00:00]} 65. fxg3 {[%emt 0:00:03]} gxh4 {[%emt 0:00:00]} 66. gxh4 {[%emt 0:00:02]} h5 {[%emt 0:00:00] Weighted Error Value: White=0.40/Black=0.20 (precise)} 0-1

[Event "Charlotte Open 2024"]
[Site "Charlotte"]
[Date "2024.01.15"]
[Round "5.4"]
[White "Vanapalli, Vishnu"]
[Black "Cordova, Emilio"]
[Result "0-1"]
[ECO "A30"]
[WhiteElo "2276"]
[BlackElo "2563"]
[Annotator "TA"]
[PlyCount "154"]
[EventDate "2024.01.05"]
[EventType "swiss"]
[EventCountry "USA"]
[SourceTitle "playchess.com"]
[Source "ChessBase"]
[SourceQuality "1"]
[TimeControl "6600+10"]

{[%evp 21,154,21,45,46,47,43,34,12,10,0,12,5,28,0,1,2,12,0,0,0,0,-9,21,0,8,0,41,0,0,0,21,16,93,-12,0,0,42,-29,-20,-40,-17,-18,0,-18,0,0,0,0,188,209,239,188,258,262,335,31,31,24,32,30,45,6,39,0,0,0,0,0,0,0,0,0,16,0,0,0,0,0,0,0,0,0,0,0,0,0,0,0,29,29,31,0,0,0,38,0,0,0,0,0,0,0,0,0,0,0,0,0,0,0,0,0,0,0,0,0,0,0,0,0,0,0,0,0,0,0,0,0,0,-8,0,0,0,-29997,-29998]} 1. Nf3 {[%emt 0:00:05]} c5 {[%emt 0:05:35]} 2. c4 {[%emt 0:00:58]} b6 {[%emt 0:02:13]} 3. g3 {[%emt 0:00:34]} Bb7 {[%emt 0:00:06]} 4. Bg2 {[%emt 0:00:05]} e6 {[%emt 0:00:57]} 5. O-O {[%emt 0:00:16]} Be7 {[%emt 0:00:31]} 6. Nc3 {[%emt 0:03:41]} Nf6 {[%emt 0:00:08]} 7. d4 {[%emt 0:01:11]} cxd4 {[%emt 0:00:22]} 8. Qxd4 {[%emt 0:00:07]} d6 {[%emt 0:00:49]} 9. Rd1 {[%emt 0:00:23]} a6 {[%emt 0:02:14]} 10. b3 {[%emt 0:00:25]} Nbd7 {[%emt 0:00:13]} 11. e4 {[%emt 0:03:31] 11.e4 has lost popularity.} O-O {[%emt 0:03:54][%cal Ob6b5]} 12. Ba3 {[%emt 0:08:14] A30: Symmetrical English: Double Fianchetto and Hedgehog.} Nc5 {[%emt 0:05:37]} 13. e5 {[%emt 0:03:22]} dxe5 {[%emt 0:00:05]} 14. Qxe5 {[%emt 0:01:27] White is slightly better.} Qc8 {[%emt 0:01:03] Hoping for ...Ncd7.} 15. Bb2 {[%emt 0:01:21][%cal Oc3d5]} Re8 {[%emt 0:03:36] [#]} 16. Rac1 $146 {[%emt 0:09:06]} ({Predecessor:} 16. Qe2 Ra7 17. Ne5 Bxg2 18. Kxg2 Rc7 19. Qf3 Bf8 20. Rd2 Ncd7 21. Nxd7 Rxd7 22. Rxd7 Nxd7 {½-½ Espig,L (2359)-Reizniece Ozola,D (2330) Oberliga Ost-A 0607 2006 (10.2)}) 16... Bf8 {[%emt 0:03:47]} 17. h3 {[%emt 0:04:24]} Ra7 {[%emt 0:09:32]} 18. Qe2 {[%emt 0:03:32]} Qa8 {[%emt 0:04:05]} 19. Ne1 {[%emt 0:12:35]} (19. b4 $5 Ncd7 $8 20. a3 $14) 19... Bxg2 {[%emt 0:06:50]} 20. Nxg2 {[%emt 0:00:10]} h6 {[%emt 0:01:20]} 21. Ne3 {[%emt 0:05:45]} Nh7 {[%emt 0:08:15]} 22. h4 {[%emt 0:07:07]} (22. Ng4 {looks sharper.} Ng5 23. f4 Nge4 24. Qg2) 22... f5 {[%emt 0:01:07]} 23. Ng2 {[%emt 0:06:06]} Rf7 {[%emt 0:06:32]} 24. b4 {[%emt 0:06:45]} Nd7 {[%emt 0:00:57]} 25. a3 {[%emt 0:00:09]} a5 {[%emt 0:01:46]} 26. Nb5 {[%emt 0:02:42]} Qb8 {[%emt 0:02:32] Prevents Nc7} (26... axb4 27. Nc7 Qd8 28. Nxe8 Qxe8 29. axb4 $16) (26... Qc6 $1 $11) 27. Nd4 {[%emt 0:04:57]} (27. c5 $16 {c6 is the strong threat.} bxc5 28. bxa5) 27... axb4 $11 {[%emt 0:01:04]} 28. axb4 {[%emt 0:00:09]} (28. Nxe6 $2 bxa3 29. Re1 axb2 $19) 28... Qc8 {[%emt 0:03:17]} 29. b5 {[%emt 0:06:49]} (29. Nxe6 Bxb4 30. c5 Bxc5 $17) (29. c5 $14 bxc5 30. Nxe6) 29... e5 {[%emt 0:00:57]} 30. Nc6 {[%emt 0:00:11]} Bc5 {[%emt 0:01:40]} 31. Ra1 {[%emt 0:01:50]} (31. Bxe5 $2 Nxe5 32. Re1 (32. Nxe5 $2 Rfe7 $19) 32... Nf6 33. Nxe5 Ng4 34. Nxf7 Rxe2 35. Rxe2 Kxf7 $19) 31... Nhf6 $1 {[%emt 0:02:08]} 32. Ba3 {[%emt 0:00:27]} (32. Bxe5 $2 Ng4 33. Rd5 Ndxe5 34. Nxe5 Bxf2+ $19) 32... Ne4 {[%emt 0:02:06]} (32... Ng4 $5 {[%cal Rc5f2]} 33. Bxc5 Nxc5 $11) 33. Bxc5 {[%emt 0:01:37]} Ndxc5 {[%emt 0:00:06]} 34. Qf3 {[%emt 0:00:33] Prevents Nc3} Nf6 $2 {[%emt 0:03:52] [#] Wards off Rd5} (34... f4 $11 35. gxf4 exf4) 35. Nxe5 $1 $18 {[%emt 0:00:56][%mdl 512]} Rc7 {[%emt 0:00:38]} (35... Rxe5 $2 36. Ra8 $18) (35... Rb7 36. Nc6) 36. Ne3 {[%emt 0:01:41]} Nfe4 {[%emt 0:01:34]} (36... Rxe5 $2 37. Ra8 $18) (36... Nb3 $142) 37. Nc6 {[%emt 0:01:42]} (37. Qxf5 $2 Qxf5 38. Nxf5 Rxe5 $19) 37... f4 {[%emt 0:00:35]} 38. Qxf4 {[%emt 0:02:01]} ({White has to play} 38. gxf4 $18 {Strongly threatening Nd5.} Nf6 39. Ne5) 38... Rf7 $14 {[%emt 0:00:41]} 39. Qg4 {[%emt 0:00:13]} Qxg4 {[%emt 0:00:46]} 40. Nxg4 {[%emt 0:00:05] Threatens to win with h5.} h5 {[%emt 0:00:03]} 41. Ne3 {[%emt 0:03:33]} (41. Nge5 {with more complications.} Rxf2 42. Ra3 Rc2 43. Rda1) 41... Rxf2 {[%emt 0:00:27][%cal Oc5b3]} 42. Rf1 {[%emt 0:01:42]} (42. Nd5 {keeps more tension.} Rb2 43. Re1 Rf8 44. Rab1) 42... Rxf1+ {[%emt 0:02:15]} 43. Nxf1 {[%emt 0:00:16]} Nd6 {[%emt 0:00:07]} 44. Rc1 {[%emt 0:00:42]} Re4 {[%emt 0:01:29]} 45. Nd2 {[%emt 0:00:06]} Re3 {[%emt 0:00:04]} 46. Nf1 {[%emt 0:00:28]} Ra3 {[%emt 0:02:26]} 47. Ne7+ {[%emt 0:00:16]} Kh7 {[%emt 0:02:45]} 48. Nd5 {[%emt 0:00:00]} Nd3 {[%emt 0:00:09]} 49. Rc2 {[%emt 0:00:00]} Ne1 {[%emt 0:00:34]} 50. Rc1 {[%emt 0:00:00]} (50. Re2 $5 Nf3+ $8 51. Kf2 Nxc4 52. Nfe3 $11) 50... Nd3 {[%emt 0:00:16]} 51. Rc2 {[%emt 0:00:04]} Ne1 {[%emt 0:00:07]} 52. Rc1 {[%emt 0:01:15]} (52. Re2 $5 Nf3+ $8 53. Kf2 $11) 52... Nf3+ {[%emt 0:00:19]} 53. Kg2 {[%emt 0:00:08]} Ne5 {[%emt 0:00:04]} 54. Nfe3 {[%emt 0:01:24]} (54. Nxb6 $2 {loses.} Ra2+ 55. Kh3 Ne4 $19) 54... Ne4 {[%emt 0:01:01]} 55. Rc2 {[%emt 0:00:26]} Nd6 {[%emt 0:02:53]} 56. Kf2 {[%emt 0:00:32]} (56. Re2 $5 {[%cal Re3c2]} Nexc4 57. Nxc4 Nxc4 58. Re4 Ra2+ 59. Kh3 $14) 56... Ne4+ {[%emt 0:00:52]} 57. Kg2 {[%emt 0:00:01]} Nd6 $1 {[%emt 0:01:17]} 58. Kf2 {[%emt 0:01:02]} (58. Re2 $5 {[%cal Re3c2]} Nexc4 59. Nxc4 Nxc4 60. Re4 Ra2+ 61. Kh3 $14) 58... Rb3 {[%emt 0:03:08]} 59. Kg2 {[%emt 0:00:38]} Rd3 {[%emt 0:00:25]} 60. Kf2 {[%emt 0:00:12]} Ne4+ {[%emt 0:01:24]} 61. Kg2 {[%emt 0:00:07]} Nd6 $1 {[%emt 0:00:24]} 62. Kf2 {[%emt 0:00:10]} Ndxc4 {[%emt 0:00:38][%mdl 64] Deflection} 63. Nxc4 {[%emt 0:00:02]} Rxd5 {[%emt 0:00:02]} 64. Nxb6 {[%emt 0:00:02]} Rxb5 $11 {[%emt 0:00:02][%mdl 4096] Endgame KRN-KRN} 65. Na4 {[%emt 0:00:23]} Ng4+ {[%emt 0:00:13]} 66. Ke2 {[%emt 0:00:16]} Rf5 {[%emt 0:00:07]} 67. Rc3 {[%emt 0:00:10]} Rf2+ {[%emt 0:00:16]} 68. Ke1 {[%emt 0:00:01]} Ra2 {[%emt 0:00:33]} 69. Nc5 {[%emt 0:00:03]} Kg6 {[%emt 0:00:09]} 70. Ne6 {[%emt 0:00:04]} Nf6 {[%emt 0:00:31]} 71. Nf4+ {[%emt 0:00:27]} Kf5 {[%emt 0:00:04]} 72. Rc5+ {[%emt 0:00:07]} Kg4 {[%emt 0:00:12]} 73. Nxh5 {[%emt 0:00:07]} Ne4 {[%emt 0:00:18]} 74. Rc4 {[%emt 0:00:21]} Kf3 {[%emt 0:00:10]} 75. Kd1 {[%emt 0:00:03]} Ke3 {[%emt 0:00:20]} 76. Rc7 {[%emt 0:00:17]} (76. Nxg7 $2 {perishes.} Kd3 77. Rc8 Ra1+ 78. Rc1 Nc3+ {[%mdl 64] Deflection} 79. Ke1 Rxc1+ $19) 76... Rb2 {[%emt 0:01:38] ( -> ...Nf2+)} 77. Nxg7 $2 {[%emt 0:00:10][%mdl 8192]} (77. Rxg7 $2 {is a self mate.} Nf2+ 78. Kc1 Nd3+ 79. Kd1 Rd2#) (77. Kc1 $11 Rb5 78. Nxg7) 77... Nf2+ {[%emt 0:00:07] Black used his chance.   Weighted Error Value: White=0.20 (precise) /Black=0.18 (very precise)} 0-1